[Event "24th Hoogeschool Zeeland 2022"]
[Site "Vlissingen"]
[Date "2022.08.11"]
[Round "7.10"]
[White "Pham, Khoi"]
[Black "Lohr, Maximilian"]
[Result "1/2-1/2"]
[ECO "B11"]
[WhiteElo "2317"]
[BlackElo "2092"]
[Annotator "TA"]
[PlyCount "46"]
[EventDate "2022.08.05"]
[EventType "swiss"]
[EventCountry "NED"]
[SourceTitle "playchess.com"]
[Source "ChessBase"]
[SourceQuality "1"]
[TimeControl "40/5400+30:1800+30"]

{[%evp 10,46,27,29,30,12,23,30,29,22,43,37,46,32,26,26,75,49,74,80,69,22,51,14,64,22,108,93,102,112,114,103,109,0,0,0,36,0,0]} 1. e4 {[%emt 0:00:03]} c6 {[%emt 0:09:39]} 2. Nf3 {[%emt 0:00:19]} d5 {[%emt 0:00:17]} 3. Nc3 {[%emt 0:00:11]} dxe4 {[%emt 0:00:23]} 4. Nxe4 {[%emt 0:00:07]} Nf6 {[%emt 0:00:16]} 5. Qe2 {[%emt 0:00:16]} Nxe4 {[%emt 0:00:14]} 6. Qxe4 {[%emt 0:00:06]} Nd7 {[%emt 0:00:49] B11: Caro-Kann: Two Knights Variation.} 7. Bc4 {[%emt 0:00:43] And now Ng5 would win.} Nf6 {[%emt 0:00:35] [#]} 8. Ne5 $1 {[%emt 0:00:11][%csl Ge5][%cal Rc4f7]} e6 {[%emt 0:00:28] White has an edge.} 9. Qe2 {[%emt 0:00:11]} Be7 {[%emt 0:03:20]} 10. O-O {[%emt 0:03:11] 10.c3 is the fancy move.} O-O {[%emt 0:00:07]} 11. a4 {[%emt 0:01:04]} c5 {[%emt 0:09:11] [#]} 12. b3 $146 {[%emt 0:05:00]} ({Predecessor:} 12. Ra3 Nd7 13. Rh3 Nxe5 14. Qxe5 g6 15. Rd3 Qb6 16. b3 Rd8 17. Rxd8+ Bxd8 18. Ba3 {½-½ (89) Van der Wiel,J (2555)-Boersma,P (2405) Hilversum 1986}) 12... Nd7 {[%emt 0:09:36]} (12... Qd4 $11 13. c3 Qe4) 13. Bb2 {[%emt 0:13:09][%cal Oe5f7] White is much more active. The black rooks are badly placed.} (13. Nxf7 {is interesting.} Rxf7 14. Qxe6 Qe8 15. Re1) 13... Nxe5 {[%emt 0:01:12]} 14. Bxe5 {[%emt 0:00:05]} ({Avoid the trap} 14. Qxe5 $2 Bf6 15. Qxc5 Bxb2 $19) 14... Bf6 {[%emt 0:00:11]} 15. f4 {[%emt 0:01:07]} (15. d4 $14) 15... Bd7 {[%emt 0:03:39]} 16. Rae1 {[%emt 0:02:27]} Bc6 {[%emt 0:00:51]} (16... a6 $11) 17. Qf2 {[%emt 0:08:07]} (17. f5 {looks sharper.} Bxe5 18. Qxe5 exf5 19. Rxf5 Qxd2 20. Rf2) 17... Bh4 {[%emt 0:07:55]} (17... g6 $11 {remains equal.}) 18. g3 $16 {[%emt 0:00:56]} Bf6 {[%emt 0:00:07]} 19. f5 {[%emt 0:14:13]} exf5 {[%emt 0:05:03]} 20. Bxf6 {[%emt 0:01:49]} Qxf6 {[%emt 0:01:35]} 21. Qxc5 {[%emt 0:00:45]} (21. Qxf5 $16 Qd4+ 22. Rf2 (22. Qf2 Qd6 $14)) 21... g6 $1 $11 {[%emt 0:03:04]} 22. d4 {[%emt 0:04:34]} Rfd8 {[%emt 0:13:59]} (22... Bxa4 $5 23. Qe5 (23. bxa4 Rac8 $15) 23... Qxe5 24. Rxe5 Bc6 $11) 23. d5 {[%emt 0:01:52]} Bxd5 {[%emt 0:00:31] Weighted Error Value: White=0.21 (precise) /Black=0.21 (precise)} 1/2-1/2

[Event "24th Hoogeschool Zeeland 2022"]
[Site "Vlissingen"]
[Date "2022.08.11"]
[Round "7.11"]
[White "Mensing, Adrian"]
[Black "Sorbe, Stephane"]
[Result "0-1"]
[ECO "D72"]
[WhiteElo "1956"]
[BlackElo "2352"]
[Annotator "TA"]
[PlyCount "78"]
[EventDate "2022.08.05"]
[EventType "swiss"]
[EventCountry "NED"]
[SourceTitle "playchess.com"]
[Source "ChessBase"]
[SourceQuality "1"]
[TimeControl "40/5400+30:1800+30"]

{[%evp 14,78,47,30,50,41,61,30,63,9,0,-8,-11,-12,-8,-49,-48,-70,-58,-81,-42,-55,-75,-75,-72,-109,-114,-184,-163,-184,-176,-205,-154,-258,-77,-109,-109,-110,-110,-113,-113,-114,-115,-181,-107,-259,-206,-233,-158,-214,-102,-867,-867,-1170,-1042,-1154,-1147,-1082,-968,-1312,-1250,-29978,-29979,-29983,-29984,-29985,-29985]} 1. d4 {[%emt 0:00:05]} Nf6 {[%emt 0:03:36]} 2. c4 {[%emt 1:31:25]} g6 {[%emt 0:00:12]} 3. g3 {[%emt 0:00:00]} d5 {[%emt 0:02:15]} 4. cxd5 {[%emt 0:00:00]} Nxd5 {[%emt 0:01:29]} 5. e4 {[%emt 0:00:00]} Nb6 {[%emt 0:00:09]} 6. Bg2 {[%emt 0:00:00]} Bg7 {[%emt 0:00:08]} 7. Ne2 {[%emt 0:00:00]} O-O {[%emt 0:00:21]} 8. O-O {[%emt 0:00:00]} a5 {[%emt 0:02:21] D72: Fianchetto Grünfeld: 5 cxd5 Nxd5 6 e4 Nb6 (without Nf3).} 9. Nbc3 {[%emt 0:00:00]} a4 {[%emt 0:01:05]} 10. Bf4 {[%emt 0:00:00]} c6 {[%emt 0:02:45] [#] White has an edge.} 11. Bxb8 $146 {[%emt 0:00:00]} (11. Qc2 $14) ({Predecessor:} 11. h3 N8d7 12. e5 Nb8 13. Qc1 Na6 14. Bh6 Nb4 15. Rd1 Bf5 16. Bxg7 Kxg7 17. Nf4 {1-0 (41) King,D (2460)-Gutman,L (2460) Wuppertal 1986}) 11... Rxb8 $11 {[%emt 0:00:06]} 12. Nxa4 {[%emt 0:00:00]} Nxa4 {[%emt 0:04:13]} 13. Qxa4 {[%emt 0:00:00]} Qb6 {[%emt 0:04:52]} 14. Qc4 {[%emt 0:00:00]} Qxb2 {[%emt 0:18:32]} 15. Rab1 {[%emt 0:00:00]} Qa3 {[%emt 0:01:26]} 16. Rfd1 {[%emt 0:00:00]} Be6 {[%emt 0:09:04]} (16... Rd8 {is interesting.} 17. Nf4 Bg4 18. Rd3 b5) 17. Qc1 {[%emt 0:00:00]} Qxa2 {[%emt 0:06:13]} 18. Nc3 {[%emt 0:00:00]} Qa5 {[%emt 0:01:49]} (18... Qa7 $5 {[%cal Rg7d4]} 19. Ra1 Qb6 $17) 19. Ra1 {[%emt 0:00:00]} Qh5 {[%emt 0:03:14] Black is more active.} 20. Ra7 {[%emt 0:00:00]} (20. Rb1 $17) 20... Rfd8 {[%emt 0:01:43]} 21. e5 {[%emt 0:00:00]} Bg4 {[%emt 0:05:21]} 22. Rd2 {[%emt 0:00:00]} Bf3 {[%emt 0:00:10]} 23. Qa3 {[%emt 0:00:00]} (23. Bxf3 $17 {was worth a try.} Qxf3 24. Na4) 23... Qg5 $2 {[%emt 0:09:21] [#]} (23... Bxe5 $19 {is more deadly.} 24. Qxe7 Re8) 24. Rd3 {[%emt 0:01:10]} Bxg2 {[%emt 0:00:33]} 25. Kxg2 {[%emt 0:00:03]} Bxe5 {[%emt 0:03:55]} 26. h4 {[%emt 0:03:22]} Qf5 {[%emt 0:05:44]} 27. Rf3 {[%emt 0:00:34]} Bd6 {[%emt 0:00:17]} 28. Qb2 {[%emt 0:02:55]} (28. Qb3 $17 Qe6 29. Qxe6 fxe6 30. Ne4) 28... Qg4 {[%emt 0:03:05]} (28... Qc8 $19 29. Qb6 Qc7) 29. Nd1 $2 {[%emt 0:00:38]} (29. Qb3 $17) 29... Qe4 {[%emt 0:01:28]} 30. Qb3 {[%emt 0:02:18]} Qd5 {[%emt 0:00:45]} 31. Qb6 {[%emt 0:01:27]} (31. Qxd5 $17 cxd5 32. Rb3) 31... e5 {[%emt 0:03:43]} (31... c5 $19 {and Black stays clearly on top.} 32. Ra4 cxd4 33. Rxd4 Qc5) 32. Rxb7 $2 {[%emt 0:00:29][%mdl 8192]} (32. Ne3 $17 Qxd4 33. Qb3) 32... exd4 $19 {[%emt 0:01:04] [#] aiming for ...c5.} 33. Nb2 {[%emt 0:01:59]} c5 {[%emt 0:01:27][%cal Bc6c5,Bc5c4][%mdl 32]} 34. Rxb8 {[%emt 0:00:30]} Rxb8 {[%emt 0:00:07]} 35. Qa5 {[%emt 0:00:13]} Kg7 {[%emt 0:03:46] ( -> ...Rb3)} 36. Qd2 {[%emt 0:00:51]} Rb3 {[%emt 0:00:26]} 37. Nd3 {[%emt 0:00:12]} c4 {[%emt 0:00:35] Black mates.} 38. Ne1 {[%emt 0:00:21]} Bb4 {[%emt 0:00:55]} 39. Qf4 {[%emt 0:00:56]} Bxe1 {[%emt 0:00:19] Weighted Error Value: White=0.88/Black=0.35} 0-1

[Event "24th Hoogeschool Zeeland 2022"]
[Site "Vlissingen"]
[Date "2022.08.11"]
[Round "7.12"]
[White "Klepke, Ricardo"]
[Black "Duson, Robin"]
[Result "1/2-1/2"]
[ECO "A32"]
[WhiteElo "2293"]
[BlackElo "2027"]
[Annotator "TA"]
[PlyCount "84"]
[EventDate "2022.08.05"]
[EventType "swiss"]
[EventCountry "NED"]
[SourceTitle "playchess.com"]
[Source "ChessBase"]
[SourceQuality "1"]
[TimeControl "40/5400+30:1800+30"]

{[%evp 9,84,8,13,-14,9,0,-10,-9,-9,-11,-2,-6,9,14,5,-14,11,10,14,9,19,7,31,-11,0,0,0,-8,-8,-45,-8,-8,-8,-14,-14,-14,-11,-21,-13,-61,-55,-59,-48,-87,-97,-125,-125,-134,-132,-146,-49,-47,-51,-53,-44,-48,-41,-35,-35,-50,-31,-29,0,-53,-37,-72,-39,-49,-11,-75,-72,-113,0,-15,0,0,3]} 1. d4 {[%emt 0:00:03]} Nf6 {[%emt 0:05:17]} 2. c4 {[%emt 0:00:04]} e6 {[%emt 0:00:05]} 3. g3 {[%emt 0:00:05]} c5 {[%emt 0:00:29]} 4. Nf3 {[%emt 0:00:07]} cxd4 {[%emt 0:02:10]} 5. Nxd4 {[%emt 0:00:08]} d5 {[%emt 0:01:42]} 6. Nc2 {[%emt 0:04:14] A32: Symmetrical English: 2 Nf3 Nf6 3 d4 cxd4 4 Nxd4 e6.} Be7 {[%emt 0:11:55]} ({Much less strong is} 6... dxc4 7. Qxd8+ Kxd8 8. Bg2 $14) 7. Bg2 {[%emt 0:00:48] [#]} O-O $146 {[%emt 0:11:25]} ({Predecessor:} 7... dxc4 8. Qxd8+ Bxd8 9. Nc3 a6 10. a4 Nbd7 11. Ne3 Ne5 12. f4 Ned7 13. Nxc4 Bc7 {0-1 (52) Rua,A-Rocha,T (1948) Brazil 2009}) 8. O-O {[%emt 0:03:34]} dxc4 {[%emt 0:05:09]} 9. Qxd8 {[%emt 0:01:21]} Rxd8 {[%emt 0:00:25]} 10. Nba3 {[%emt 0:00:17]} Nd5 {[%emt 0:02:57]} 11. Nxc4 {[%emt 0:01:49]} Nc6 {[%emt 0:05:27]} 12. N2e3 {[%emt 0:03:34]} Nxe3 {[%emt 0:01:39]} 13. Bxe3 {[%emt 0:00:29]} Bd7 {[%emt 0:00:53]} 14. Rfd1 {[%emt 0:01:56]} Be8 {[%emt 0:03:49]} 15. a4 {[%emt 0:19:30]} b6 {[%emt 0:05:45]} 16. Bf4 {[%emt 0:07:25]} g5 {[%emt 0:04:46]} 17. Bd6 {[%emt 0:02:51] And now Bxc6 would win.} Kf8 {[%emt 0:02:32]} 18. b3 {[%emt 0:07:18]} Rac8 {[%emt 0:01:29]} 19. Rac1 {[%emt 0:13:39]} Na5 {[%emt 0:03:01] Threatens to win with ...Bxd6.} (19... Nd4 $5 20. Rxd4 Rxd6 $1 21. Rxd6 Bxd6 $15) 20. Bxe7+ {[%emt 0:06:32]} Kxe7 {[%emt 0:03:41]} 21. Rxd8 {[%emt 0:00:35]} Kxd8 {[%emt 0:02:00]} 22. Rd1+ {[%emt 0:00:15]} Ke7 {[%emt 0:00:18]} 23. Nxa5 {[%emt 0:00:17]} bxa5 $11 {[%emt 0:00:10][%mdl 4096] Endgame KRB-KRB} 24. Be4 {[%emt 0:00:30]} (24. f4 $11 {might be stronger.}) 24... Rc3 $15 {[%emt 0:03:02]} 25. Rb1 {[%emt 0:02:46]} Kd6 {[%emt 0:04:15]} 26. Bxh7 {[%emt 0:06:56]} f5 {[%emt 0:04:15]} 27. g4 {[%emt 0:01:02]} Rh3 {[%emt 0:01:19]} ({Much worse is} 27... fxg4 $6 28. Bd3 $15) 28. Rd1+ {[%emt 0:02:05] [#]} Ke7 $1 {[%emt 0:00:42][%cal Bd6e7,Be7e6,Be6f5,Bf5g4][%mdl 32]} 29. Bg8 {[%emt 0:04:07]} Rh8 {[%emt 0:03:08]} (29... fxg4 $17 30. e3 Rh8 31. Bxe6 Kxe6) 30. Bxe6 $1 {[%emt 0:00:14]} Kxe6 {[%emt 0:00:26]} 31. gxf5+ {[%emt 0:00:06]} Kxf5 {[%emt 0:01:36] KRB-KR} 32. Rd5+ {[%emt 0:00:08]} Kg4 {[%emt 0:01:45]} 33. Rxa5 {[%emt 0:00:58]} Rh7 {[%emt 0:00:10]} 34. Re5 {[%emt 0:04:10]} Bc6 {[%emt 0:01:35]} 35. Rc5 {[%emt 0:08:07]} Be8 {[%emt 0:01:26]} 36. Re5 {[%emt 0:00:00]} Bg6 {[%emt 0:01:40]} 37. b4 {[%emt 0:00:00]} Rb7 {[%emt 0:01:32]} (37... Kf4 $5 {[%cal Rf4e5]} 38. Rd5 Be4 $17) 38. b5 {[%emt 0:00:00]} Bc2 {[%emt 0:02:30]} (38... Kf4 $5 {[%cal Rf4e5]} 39. Re6 Bf7 40. e3+ Kf5 $17) 39. Rc5 {[%emt 0:00:00] [#]} (39. Kg2 $11 {keeps the balance.}) 39... Bd1 $1 $17 {[%emt 0:00:40]} 40. f3+ {[%emt 0:00:00]} Kh4 {[%emt 0:02:38]} ({Black should try} 40... Kh5 $17 41. h4 Bxa4 42. Rxg5+ Kh6) 41. Kf2 {[%emt 0:31:17]} Re7 {[%emt 0:01:25]} 42. Rc1 {[%emt 0:00:00]} Bb3 {[%emt 0:07:53] Weighted Error Value: White=0.14 (very precise) /Black=0.14 (very precise)} (42... Bxe2 $2 43. Re1 $18) 1/2-1/2

[Event "24th Hoogeschool Zeeland 2022"]
[Site "Vlissingen"]
[Date "2022.08.11"]
[Round "7.13"]
[White "Bezemer, Arno"]
[Black "Verwoert, Jef"]
[Result "1-0"]
[ECO "B30"]
[WhiteElo "2278"]
[BlackElo "1998"]
[Annotator "TA"]
[PlyCount "81"]
[EventDate "2022.08.05"]
[EventType "swiss"]
[EventCountry "NED"]
[SourceTitle "playchess.com"]
[Source "ChessBase"]
[SourceQuality "1"]
[TimeControl "40/5400+30:1800+30"]

{[%evp 9,81,51,51,47,52,49,49,60,58,44,64,51,75,40,45,39,50,38,54,38,43,40,40,40,41,52,53,55,48,44,46,50,58,51,61,61,62,64,69,10,10,10,43,37,86,12,16,16,31,38,49,53,52,58,54,38,327,68,68,68,497,543,543,527,444,525,516,502,869,793,924,919,1620,693]} 1. e4 {[%emt 0:00:07]} c5 {[%emt 0:00:19]} 2. Nf3 {[%emt 0:00:07]} Nc6 {[%emt 0:00:27]} 3. Bb5 {[%emt 0:00:26]} Nd4 {[%emt 0:00:45]} 4. Nxd4 {[%emt 0:02:10]} cxd4 {[%emt 0:00:09]} 5. c3 {[%emt 0:01:18]} a6 {[%emt 0:02:06]} 6. Ba4 {[%emt 0:05:25] B30: Sicilian: 2...Nc6 3 Bb5, lines without ...g6.} b5 {[%emt 0:04:46]} 7. Bc2 {[%emt 0:03:26]} dxc3 {[%emt 0:06:16]} 8. Nxc3 {[%emt 0:00:23] White is slightly better.} Bb7 {[%emt 0:03:55]} 9. d4 {[%emt 0:01:17]} g6 {[%emt 0:04:29]} 10. O-O {[%emt 0:00:54] White is more active.} Bg7 {[%emt 0:01:55] [#]} 11. Be3 $146 {[%emt 0:08:02]} ({Predecessor:} 11. e5 f5 12. Bb3 Nh6 13. a4 b4 14. Nd5 Qa5 15. Ne3 f4 16. Nc4 Qc7 17. Bxf4 O-O 18. Qc1 Nf7 19. e6 Qc6 20. exf7+ Kh8 21. Ne3 Qe4 22. Be5 {1-0 (22) Vlasak,L (2375)-Bauma,J (2297) Czech Republic 2016}) 11... Nf6 {[%emt 0:05:58]} 12. f3 {[%emt 0:02:20]} O-O {[%emt 0:01:02]} 13. Qd2 {[%emt 0:00:33]} Rc8 {[%emt 0:06:24]} 14. Rfc1 {[%emt 0:07:36]} d6 {[%emt 0:01:05]} 15. a4 {[%emt 0:05:27]} b4 {[%emt 0:02:30]} 16. Ne2 {[%emt 0:00:42]} a5 {[%emt 0:05:23]} 17. Bd3 {[%emt 0:00:25]} Rxc1+ {[%emt 0:01:01]} 18. Rxc1 {[%emt 0:02:19]} Qa8 {[%emt 0:06:30]} 19. Rc7 {[%emt 0:02:57]} Rc8 {[%emt 0:03:10]} 20. Qc2 {[%emt 0:07:46]} Qb8 {[%emt 0:08:37]} 21. Rxc8+ {[%emt 0:00:44]} Qxc8 {[%emt 0:00:38]} 22. Qxc8+ {[%emt 0:01:10]} Bxc8 {[%emt 0:00:06]} 23. Bb5 {[%emt 0:10:34]} Bd7 {[%emt 0:11:02]} 24. Bxd7 {[%emt 0:09:34]} (24. b3 $14) 24... Nxd7 $14 {[%emt 0:00:04][%mdl 4096] Endgame KBN-KBN} 25. Nc1 {[%emt 0:01:15]} Kf8 {[%emt 0:14:42]} 26. Kf2 {[%emt 0:02:19]} Ke8 {[%emt 0:00:41]} (26... Nb6 $14 {is superior.}) 27. Ke2 {[%emt 0:01:44]} (27. Nb3 $16) 27... Nb6 $11 {[%emt 0:01:57]} 28. b3 {[%emt 0:00:27]} Kd7 {[%emt 0:03:03]} 29. d5 {[%emt 0:01:53]} Kc7 {[%emt 0:00:30]} 30. Kd3 {[%emt 0:02:28]} e6 {[%emt 0:03:12]} 31. Bxb6+ {[%emt 0:00:58]} Kxb6 $14 {[%emt 0:00:07] KB-KN} 32. Kc4 {[%emt 0:00:26]} h5 $2 {[%emt 0:01:11][%mdl 8192] [#]} (32... e5 $14) 33. Nd3 $2 {[%emt 0:00:40]} (33. dxe6 $1 $18 {aiming for e7.} fxe6 34. Ne2) 33... e5 $1 {[%emt 0:01:26]} 34. Nb2 {[%emt 0:05:28] Kd3 is the strong threat.} Bh6 $2 {[%emt 0:00:49][%mdl 8192] [#]} (34... Bf6 $14) 35. Kd3 $1 $18 {[%emt 0:00:07] White is clearly winning.} Bf8 {[%emt 0:00:46]} 36. Nc4+ {[%emt 0:00:02]} Ka6 {[%emt 0:00:01]} 37. g4 {[%emt 0:00:47]} h4 {[%emt 0:01:14]} 38. g5 {[%emt 0:04:41]} h3 {[%emt 0:00:41]} (38... Be7 $142 39. h3 Kb7 40. Nxa5+ Kb6) 39. Ke3 {[%emt 0:00:28]} Be7 {[%emt 0:00:18]} 40. f4 {[%emt 0:00:12]} f6 {[%emt 0:00:41]} 41. gxf6 {[%emt 0:41:23] Weighted Error Value: White=0.23 (precise) /Black=0.49} (41. f5 $142 gxf5 42. g6 f4+ 43. Kf3) 1-0

[Event "24th Hoogeschool Zeeland 2022"]
[Site "Vlissingen"]
[Date "2022.08.11"]
[Round "7.14"]
[White "Bakker, Jouke"]
[Black "Ollenberger, Roland"]
[Result "1/2-1/2"]
[ECO "C00"]
[WhiteElo "2057"]
[BlackElo "2264"]
[Annotator "TA"]
[PlyCount "170"]
[EventDate "2022.08.05"]
[EventType "swiss"]
[EventCountry "NED"]
[SourceTitle "playchess.com"]
[Source "ChessBase"]
[SourceQuality "1"]
[TimeControl "40/5400+30:1800+30"]

{[%evp 12,170,41,35,53,24,34,33,67,26,86,34,35,34,27,23,39,24,33,34,38,24,15,20,15,13,42,8,42,33,36,31,36,0,20,4,34,-47,-46,-54,25,11,10,9,23,23,25,25,16,0,26,11,18,11,11,11,11,11,35,0,0,0,0,0,0,0,0,0,0,0,0,0,0,0,0,0,0,0,0,0,0,0,0,-8,-8,-17,-8,-16,-8,-8,-8,-8,-8,-8,-8,-8,-8,-8,-8,-8,-8,-31,-31,-31,-31,-64,-64,-64,-64,-64,-64,-64,-64,-64,-64,-64,-64,-64,-64,-64,-64,-64,-64,-134,-134,-134,-134,-134,-114,-134,-134,-134,-134,-134,-64,-64,0,-156,-64,-64,0,-156,-61,-61,-61,-61,-61,-156,-8,-61,-8,-8,-8,-8,-8,-8,-8,-8,-8,-8,-8]} 1. e4 {[%emt 0:00:19]} c5 {[%emt 0:00:10]} 2. Nf3 {[%emt 0:00:15]} e6 {[%emt 0:00:06]} 3. g3 {[%emt 0:00:25]} Nc6 {[%emt 0:02:05]} 4. Bg2 {[%emt 0:00:12]} Nf6 {[%emt 0:03:05]} 5. Qe2 {[%emt 0:00:27]} Qc7 {[%emt 0:04:11]} 6. O-O {[%emt 0:00:33]} d6 {[%emt 0:00:41] 6...Be7 is more advanced technology.} 7. c3 {[%emt 0:02:07]} Be7 {[%emt 0:02:06] C00: French: Unusual White 2nd moves.} 8. Rd1 {[%emt 0:03:12]} O-O {[%emt 0:00:57]} 9. d4 {[%emt 0:07:06]} e5 {[%emt 0:02:56] White is slightly better.} 10. Na3 {[%emt 0:05:12]} (10. d5 $5 {[%cal Rd5c6]} Na5 11. b3 $14 (11. b4 cxb4 12. cxb4 Nc4 $14)) 10... Bg4 {[%emt 0:01:43]} (10... exd4 $11 11. cxd4 (11. Nb5 Qb6 $11) 11... Bg4) 11. dxc5 {[%emt 0:01:53]} (11. d5 $16) 11... dxc5 $14 {[%emt 0:00:15] [#]} 12. Nc4 $146 {[%emt 0:03:33]} ({Predecessor:} 12. h3 Bxf3 13. Qxf3 a6 14. Nc4 Rfd8 15. Bg5 Nd7 16. Bxe7 Nxe7 17. Bf1 b5 18. Ne3 {1-0 (65) Joly,J (2188)-Grancher,E (1987) Europe Echecs INT 2020}) 12... Rad8 {[%emt 0:03:34]} 13. Bg5 {[%emt 0:04:58]} Be6 {[%emt 0:03:32]} 14. Bxf6 {[%emt 0:16:19]} Bxf6 {[%emt 0:00:44]} 15. Ne3 {[%emt 0:00:29]} Rxd1+ {[%emt 0:09:28]} 16. Nxd1 {[%emt 0:04:49]} Rd8 {[%emt 0:01:24]} 17. Ne3 {[%emt 0:00:38]} g6 {[%emt 0:05:37]} 18. h4 {[%emt 0:04:50]} Be7 {[%emt 0:05:24]} 19. Ne1 {[%emt 0:05:53]} Rd7 {[%emt 0:18:41]} 20. N1c2 {[%emt 0:04:56]} Qd8 {[%emt 0:03:56]} 21. Nd5 {[%emt 0:01:25]} Bf8 {[%emt 0:00:45]} 22. b3 {[%emt 0:03:16]} Bg7 {[%emt 0:05:38]} 23. Rd1 {[%emt 0:06:52]} a6 {[%emt 0:01:04]} 24. Nde3 {[%emt 0:02:59]} (24. Nce3 $14) 24... Rxd1+ $15 {[%emt 0:03:55]} 25. Nxd1 {[%emt 0:00:41]} Qa5 {[%emt 0:02:03]} ({Black should try} 25... c4 $1 $15) 26. Nce3 $11 {[%emt 0:00:33]} b5 {[%emt 0:00:15]} 27. Nd5 {[%emt 0:00:54]} Bh6 {[%emt 0:03:45]} 28. N1e3 {[%emt 0:03:00]} Kf8 {[%emt 0:05:10]} 29. h5 {[%emt 0:02:34]} Ne7 {[%emt 0:01:18]} 30. Ng4 {[%emt 0:02:27] Pair of Knights!} Bg7 {[%emt 0:01:58]} 31. h6 {[%emt 0:00:19]} Bh8 {[%emt 0:00:14]} 32. Ngf6 {[%emt 0:07:16]} Bxd5 {[%emt 0:01:05]} 33. Nxd5 {[%emt 0:00:17]} Nxd5 {[%emt 0:04:44]} 34. exd5 {[%emt 0:00:05][%mdl 4096] [#] Endgame d6 is the strong threat. KQB-KQB} Qb6 {[%emt 0:01:27]} (34... Qxc3 $2 35. Qg4 f5 36. Qh4 $18) 35. g4 {[%emt 0:01:56]} Bf6 {[%emt 0:01:10]} 36. Qe3 {[%emt 0:01:15]} Qd6 {[%emt 0:00:27]} 37. a4 {[%emt 0:02:17]} Bd8 {[%emt 0:00:54]} 38. axb5 {[%emt 0:01:30]} axb5 {[%emt 0:00:04]} 39. Qe2 {[%emt 0:00:06]} Bg5 {[%emt 0:01:27]} 40. Qxb5 {[%emt 0:00:29]} Bxh6 {[%emt 0:00:12]} 41. Qc6 {[%emt 0:09:50]} Ke7 {[%emt 0:03:13]} 42. b4 {[%emt 0:04:01]} cxb4 {[%emt 0:05:47]} 43. cxb4 {[%emt 0:00:16]} Bd2 {[%emt 0:03:04]} 44. b5 {[%emt 0:00:21]} Ba5 {[%emt 0:01:45] Prevents b6.} 45. Qb7+ {[%emt 0:03:13]} Bc7 {[%emt 0:02:58]} 46. Qc6 {[%emt 0:00:38]} Kf6 {[%emt 0:03:03]} 47. Qxd6+ {[%emt 0:00:49]} Bxd6 {[%emt 0:00:05] KB-KB} 48. Be4 {[%emt 0:00:04]} Kg5 {[%emt 0:00:38]} 49. Bf3 {[%emt 0:01:21]} Kf4 {[%emt 0:01:41]} 50. Kg2 {[%emt 0:00:32]} Bc5 {[%emt 0:03:30]} 51. Bd1 {[%emt 0:00:28]} f6 {[%emt 0:00:44]} 52. f3 {[%emt 0:01:10]} Ke3 {[%emt 0:00:17]} 53. Bb3 {[%emt 0:00:24]} Bd6 {[%emt 0:00:54]} 54. b6 {[%emt 0:00:21]} Kd4 {[%emt 0:00:26]} 55. b7 {[%emt 0:01:11]} Kc5 {[%emt 0:00:58]} 56. Kf2 {[%emt 0:00:11]} Kb6 {[%emt 0:00:34]} 57. Ba4 {[%emt 0:00:04]} Kxb7 {[%emt 0:00:40]} 58. Be8 {[%emt 0:00:06]} Kc7 {[%emt 0:00:28]} 59. Bf7 {[%emt 0:00:08]} Kd7 {[%emt 0:01:20]} 60. Bg8 {[%emt 0:00:35]} Ke7 {[%emt 0:00:12]} 61. Kg2 {[%emt 0:00:24]} Kf8 {[%emt 0:00:07]} 62. Be6 {[%emt 0:00:06]} Kg7 {[%emt 0:00:07]} 63. Kf2 {[%emt 0:00:22]} Kh6 {[%emt 0:00:15]} 64. Bg8 {[%emt 0:00:10]} f5 {[%emt 0:02:32]} 65. Kg2 {[%emt 0:01:12]} Kg7 {[%emt 0:00:27]} 66. Be6 {[%emt 0:00:08]} Kf6 {[%emt 0:00:06]} 67. Kh3 {[%emt 0:00:29]} (67. Bg8 $15) 67... e4 $17 {[%emt 0:03:51]} 68. fxe4 {[%emt 0:00:13]} fxe4 {[%emt 0:00:09]} 69. Kg2 {[%emt 0:00:06]} Kg5 {[%emt 0:00:31]} 70. Kf2 {[%emt 0:00:45]} Kf4 {[%emt 0:00:57]} 71. Ke2 {[%emt 0:00:39]} Bc5 {[%emt 0:00:10]} 72. Bd7 {[%emt 0:01:20]} Kg3 {[%emt 0:00:31]} (72... Ke5 $17 73. Be6 h6) 73. Be6 $15 {[%emt 0:00:28]} Kf4 {[%emt 0:01:23]} (73... g5 $15) 74. Bc8 $2 {[%emt 0:00:08]} (74. Bd7 $11) 74... Kg5 {[%emt 0:01:28]} (74... Ke5 $17 75. Be6 h6) 75. Be6 {[%emt 0:00:07]} Kf4 {[%emt 0:00:36]} (75... Kf6 $15) 76. Bc8 $2 {[%emt 0:00:15]} (76. Bd7 $11) 76... h5 {[%emt 0:00:22]} (76... Ke5 $17 77. Be6 h6) 77. gxh5 {[%emt 0:00:06]} gxh5 {[%emt 0:00:03]} 78. Bh3 $1 {[%emt 0:00:08]} h4 {[%emt 0:00:24]} 79. Bc8 {[%emt 0:00:07] [#]} (79. Bg2 $15) 79... Bb6 {[%emt 0:02:02]} ({Black should play} 79... Ke5 $1 $17) 80. Bh3 {[%emt 0:01:00]} (80. d6 $11) 80... Kg3 {[%emt 0:00:55]} ({Better is} 80... Bc7 $15) 81. Bf5 $11 {[%emt 0:00:07] The position is equal.} e3 {[%emt 0:00:33]} 82. d6 {[%emt 0:00:33]} Kf4 {[%emt 0:00:51]} 83. Bh3 {[%emt 0:00:14]} Bd8 {[%emt 0:00:11]} 84. d7 {[%emt 0:00:20]} Bg5 {[%emt 0:00:08]} 85. Be6 {[%emt 0:01:05]} Ke5 {[%emt 0:00:21] Weighted Error Value: White=0.10 (very precise) /Black=0.08 (flawless)} 1/2-1/2